Workbook

Sheet CALC (hidden)
A1: Emision | B1: NV42 | E1: Fecha Fin | F1: Dxv | G1: Plazo Cupon | H1: Flujo Cupón | I1: Amort | J1: VP
A2: Contrato | B2: SP16 | E2: 2013-12-19 | F2: =IF(OR(E2-$B$3<=0,E2>$B$4),"",E2-$B$3) -> 
A3: Fecha Valuación | B3: =DIA_VALUACION -> 2016-06-29 | D3: =IF(F3=MIN($F:$F),"VIG","") ->  | E3: 2014-06-19 | G3: =+E3-E2 -> 182 | H3: =IF(F3<=0,0,$B$6/36000*G3*100) -> 3.918055556 | I3: =IF(F3=MAX($F:$F),100,0) -> 0 | J3: =IF(F3="",0,(H3+I3)/(1+$B$7*182/36000)^(F3/182)) -> 0 | L3: =IF(F3="","",IF(F3=MIN($F:$F),1,L2+1)) ->  | M3: =IFERROR(H3/(1+$B$11*F3/36000)+SUM($M$2:$M2),0) -> 0
A4: Vencimiento | B4: =VLOOKUP($B$1,CTOS_CASH,2,0) -> 2042-11-13 | D4: =IF(F4=MIN($F:$F),"VIG","") ->  | E4: 2014-12-18 | G4: =+E4-E3 -> 182 | H4: 3.918055556 | I4: =IF(F4=MAX($F:$F),100,0) -> 0 | J4: 0 | K4: =IFERROR(H4/(1+$B$11*F4/36000),"") ->  | M4: =IFERROR(H4/(1+$B$11*F4/36000)+SUM($M$2:$M3),0) -> 0
A5: Venc. Futuro | B5: =VLOOKUP($B$2,CTOS_FUT,2,0) -> 2016-09-30 | E5: 2015-06-18 | G5: 182 | H5: 3.918055556 | I5: 0 | J5: 0 | M5: =IFERROR(H5/(1+$B$11*F5/36000)+SUM($M$2:$M4),0) -> 0
A6: Tasa Cupón | B6: =VLOOKUP($B$1,CTOS_CASH,3,0) -> 7.75 | E6: 2015-12-17 | G6: 182 | H6: 3.918055556 | I6: 0 | J6: 0 | K6: =IFERROR(H6/(1+$B$11*F6/36000),"") ->  | M6: =IFERROR(H6/(1+$B$11*F6/36000)+SUM($M$2:$M5),0) -> 0
A7: Tasa Yield | B7: 6.761599501 | E7: 2016-06-16 | G7: 182 | H7: 3.918055556 | I7: 0 | J7: 0 | M7: =IFERROR(H7/(1+$B$11*F7/36000)+SUM($M$2:$M6),0) -> 0
A8: Precio Sucio | B8: =SUM($J:$J) -> 112.4259121 | D8: VIG | E8: 2016-12-15 | F8: 169 | G8: 182 | H8: 3.918055556 | I8: 0 | J8: 3.79765594 | K8: 3.841421957 | L8: 1 | M8: =IFERROR(H8/(1+$B$11*F8/36000)+SUM($M$2:$M7),0) -> 3.841421957
A9: Precio Limpio | B9: =+B8-B10 -> 112.146051 | E9: 2017-06-15 | F9: 351 | G9: 182 | H9: 3.918055556 | I9: 0 | J9: 3.67212919 | K9: 3.762176839 | L9: 2 | M9: =IFERROR(H9/(1+$B$11*F9/36000)+SUM($M$2:$M8),0) -> 7.603598796
A10: Intereses | B10: =100*$B$6/36000*(VLOOKUP("VIG",$D:$G,4,0)-VLOOKUP("VIG",$D:$G,3,0)) -> 0.2798611111 | E10: 2017-12-14 | F10: 533 | G10: 182 | H10: 3.918055556 | I10: 0 | J10: 3.55075157 | K10: 3.686135149 | L10: 3 | M10: =IFERROR(H10/(1+$B$11*F10/36000)+SUM($M$2:$M9),0) -> 15.1311559
A11: Fondeo | B11: =VLOOKUP($B$2,TABLA_FONDEO,3,0) -> 4.24955056 | E11: 2018-06-14 | F11: 715 | G11: 182 | H11: 3.918055556 | I11: 0 | J11: 3.433385935 | K11: 3.613106492 | L11: 4 | M11: =IFERROR(H11/(1+$B$11*F11/36000)+SUM($M$2:$M10),0) -> 30.18928315
A12: Cupones | B12: =VLOOKUP($B$2,CTOS_FUT,3,0) -> 0 | E12: 2018-12-13 | F12: 897 | G12: 182 | H12: 3.918055556 | I12: 0 | J12: 3.319899673 | K12: 3.542915266 | L12: 5 | M12: =IFERROR(H12/(1+$B$11*F12/36000)+SUM($M$2:$M11),0) -> 60.30837507
A13: VP Cupón | B13: =IFERROR(VLOOKUP($B$12,$L:$M,2,0),0) -> 0 | E13: 2019-06-13 | F13: 1079 | G13: 182 | H13: 3.918055556 | I13: 0 | J13: 3.210164557 | K13: 3.475399257 | L13: 6 | M13: =IFERROR(H13/(1+$B$11*F13/36000)+SUM($M$2:$M12),0) -> 120.5492341
A14: DXV FUT | B14: =+B5-B3 -> 93 | E14: 2019-12-11 | F14: 1260 | G14: 181 | H14: 3.896527778 | I14: 0 | J14: 3.087571512 | K14: 3.392018399 | L14: 7 | M14: =IFERROR(H14/(1+$B$11*F14/36000)+SUM($M$2:$M13),0) -> 241.0150874
A15: Acarreo | B15: =(B8-B13)*(1+B11*B14/36000) -> 113.6601244 | E15: 2020-06-11 | F15: 1443 | G15: 183 | H15: 3.939583333 | I15: 0 | J15: 3.01794742 | K15: 3.366198103 | L15: 8 | M15: =IFERROR(H15/(1+$B$11*F15/36000)+SUM($M$2:$M14),0) -> 482.0043545
A16: Tasa Yield | B16: =CALCF!B4 -> 6.819642564 | E16: 2020-12-10 | F16: 1625 | G16: 182 | H16: 3.918055556 | I16: 0 | J16: 2.902246547 | K16: 3.287455813 | L16: 9 | M16: =IFERROR(H16/(1+$B$11*F16/36000)+SUM($M$2:$M15),0) -> 963.9299667
E17: 2021-06-10 | F17: 1807 | G17: 182 | H17: 3.918055556 | I17: 0 | J17: 2.806316431 | K17: 3.22924519 | L17: 10 | M17: =IFERROR(H17/(1+$B$11*F17/36000)+SUM($M$2:$M16),0) -> 1927.801723
E18: 2021-12-09 | F18: 1989 | G18: 182 | H18: 3.918055556 | I18: 0 | J18: 2.713557165 | K18: 3.173060159 | L18: 11 | M18: =IFERROR(H18/(1+$B$11*F18/36000)+SUM($M$2:$M17),0) -> 3855.547261
E19: 2022-06-09 | F19: 2171 | G19: 182 | H19: 3.918055556 | I19: 0 | J19: 2.62386394 | K19: 3.118796799 | L19: 12 | M19: =IFERROR(H19/(1+$B$11*F19/36000)+SUM($M$2:$M18),0) -> 7711.040258
E20: 2022-12-08 | F20: 2353 | G20: 182 | H20: 3.918055556 | I20: 0 | J20: 2.537135411 | K20: 3.066358178 | L20: 13 | M20: =IFERROR(H20/(1+$B$11*F20/36000)+SUM($M$2:$M19),0) -> 15422.02808
E21: 2023-06-08 | F21: 2535 | G21: 182 | H21: 3.918055556 | I21: 0 | J21: 2.453273585 | K21: 3.015653776 | L21: 14 | M21: =IFERROR(H21/(1+$B$11*F21/36000)+SUM($M$2:$M20),0) -> 30844.00545
E22: 2023-12-07 | F22: 2717 | G22: 182 | H22: 3.918055556 | I22: 0 | J22: 2.372183707 | K22: 2.966598964 | L22: 15 | M22: =IFERROR(H22/(1+$B$11*F22/36000)+SUM($M$2:$M21),0) -> 61687.96184
E23: 2024-06-06 | F23: 2899 | G23: 182 | H23: 3.918055556 | I23: 0 | J23: 2.293774153 | K23: 2.919114529 | L23: 16 | M23: =IFERROR(H23/(1+$B$11*F23/36000)+SUM($M$2:$M22),0) -> 123375.8762
E24: 2024-12-05 | F24: 3081 | G24: 182 | H24: 3.918055556 | I24: 0 | J24: 2.217956328 | K24: 2.873126252 | L24: 17 | M24: =IFERROR(H24/(1+$B$11*F24/36000)+SUM($M$2:$M23),0) -> 246751.7064
E25: 2025-06-05 | F25: 3263 | G25: 182 | H25: 3.918055556 | I25: 0 | J25: 2.144644566 | K25: 2.828564516 | L25: 18 | M25: =IFERROR(H25/(1+$B$11*F25/36000)+SUM($M$2:$M24),0) -> 493503.3683
E26: 2025-12-04 | F26: 3445 | G26: 182 | H26: 3.918055556 | I26: 0 | J26: 2.073756032 | K26: 2.78536396 | L26: 19 | M26: =IFERROR(H26/(1+$B$11*F26/36000)+SUM($M$2:$M25),0) -> 987006.6934
E27: 2026-06-04 | F27: 3627 | G27: 182 | H27: 3.918055556 | I27: 0 | J27: 2.00521063 | K27: 2.743463153 | L27: 20 | M27: =IFERROR(H27/(1+$B$11*F27/36000)+SUM($M$2:$M26),0) -> 1974013.345
E28: 2026-12-03 | F28: 3809 | G28: 182 | H28: 3.918055556 | I28: 0 | J28: 1.93893091 | K28: 2.702804309 | L28: 21 | M28: =IFERROR(H28/(1+$B$11*F28/36000)+SUM($M$2:$M27),0) -> 3948026.649
E29: 2027-06-03 | F29: 3991 | G29: 182 | H29: 3.918055556 | I29: 0 | J29: 1.874841983 | K29: 2.663333014 | L29: 22 | M29: =IFERROR(H29/(1+$B$11*F29/36000)+SUM($M$2:$M28),0) -> 7896053.258
E30: 2027-12-02 | F30: 4173 | G30: 182 | H30: 3.918055556 | I30: 0 | J30: 1.812871435 | K30: 2.62499799 | L30: 23 | M30: =IFERROR(H30/(1+$B$11*F30/36000)+SUM($M$2:$M29),0) -> 15792106.48
E31: 2028-06-01 | F31: 4355 | G31: 182 | H31: 3.918055556 | I31: 0 | J31: 1.752949246 | K31: 2.587750866 | L31: 24 | M31: =IFERROR(H31/(1+$B$11*F31/36000)+SUM($M$2:$M30),0) -> 31584212.92
E32: 2028-11-30 | F32: 4537 | G32: 182 | H32: 3.918055556 | I32: 0 | J32: 1.695007709 | K32: 2.551545982 | L32: 25 | M32: =IFERROR(H32/(1+$B$11*F32/36000)+SUM($M$2:$M31),0) -> 63168425.8
E33: 2029-05-31 | F33: 4719 | G33: 182 | H33: 3.918055556 | I33: 0 | J33: 1.638981357 | K33: 2.516340196 | L33: 26 | M33: =IFERROR(H33/(1+$B$11*F33/36000)+SUM($M$2:$M32),0) -> 126336851.6
E34: 2029-11-29 | F34: =IF(OR(E34-$B$3<=0,E34>$B$4),"",E34-$B$3) -> 4901 | G34: 182 | H34: 3.918055556 | I34: 0 | J34: 1.584806886 | K34: 2.482092713 | L34: 27 | M34: =IFERROR(H34/(1+$B$11*F34/36000)+SUM($M$2:$M33),0) -> 252673703.1
E35: 2030-05-30 | F35: 5083 | G35: 182 | H35: =IF(F35<=0,0,$B$6/36000*G35*100) -> 3.918055556 | I35: 0 | J35: =IF(F35="",0,(H35+I35)/(1+$B$7*182/36000)^(F35/182)) -> 1.532423084 | K35: 2.448764932 | L35: =IF(F35="","",IF(F35=MIN($F:$F),1,L34+1)) -> 28 | M35: =IFERROR(H35/(1+$B$11*F35/36000)+SUM($M$2:$M34),0) -> 505347406.2
E36: 2030-11-28 | F36: 5265 | G36: 182 | H36: 3.918055556 | I36: 0 | J36: 1.481770763 | K36: =IFERROR(H36/(1+$B$11*F36/36000),"") -> 2.416320297 | L36: 29 | M36: =IFERROR(H36/(1+$B$11*F36/36000)+SUM($M$2:$M35),0) -> 1010694812
E37: 2031-05-29 | F37: 5447 | G37: 182 | H37: 3.918055556 | I37: 0 | J37: 1.432792691 | K37: 2.384724163 | L37: 30 | M37: =IFERROR(H37/(1+$B$11*F37/36000)+SUM($M$2:$M36),0) -> 2021389625
E38: 2031-11-27 | F38: 5629 | G38: 182 | H38: 3.918055556 | I38: 0 | J38: 1.385433527 | K38: 2.353943674 | L38: 31 | M38: =IFERROR(H38/(1+$B$11*F38/36000)+SUM($M$2:$M37),0) -> 4042779249
E39: 2032-05-27 | F39: 5811 | G39: 182 | H39: 3.918055556 | I39: 0 | J39: 1.339639761 | K39: 2.323947649 | L39: 32 | M39: =IFERROR(H39/(1+$B$11*F39/36000)+SUM($M$2:$M38),0) -> 8085558499
E40: 2032-11-25 | F40: 5993 | G40: 182 | H40: 3.918055556 | I40: 0 | J40: 1.295359651 | K40: 2.294706476 | L40: 33 | M40: =IFERROR(H40/(1+$B$11*F40/36000)+SUM($M$2:$M39),0) -> 1.6171117e+10
E41: 2033-05-26 | F41: 6175 | G41: 182 | H41: 3.918055556 | I41: 0 | J41: 1.252543164 | K41: 2.266192017 | L41: 34 | M41: =IFERROR(H41/(1+$B$11*F41/36000)+SUM($M$2:$M40),0) -> 3.234223399e+10
E42: 2033-11-24 | F42: 6357 | G42: 182 | H42: 3.918055556 | I42: 0 | J42: 1.211141922 | K42: 2.238377512 | L42: 35 | M42: =IFERROR(H42/(1+$B$11*F42/36000)+SUM($M$2:$M41),0) -> 6.468446799e+10
E43: 2034-05-25 | F43: 6539 | G43: 182 | H43: 3.918055556 | I43: 0 | J43: 1.171109146 | K43: 2.2112375 | L43: 36 | M43: =IFERROR(H43/(1+$B$11*F43/36000)+SUM($M$2:$M42),0) -> 1.29368936e+11
E44: 2034-11-23 | F44: 6721 | G44: 182 | H44: 3.918055556 | I44: 0 | J44: 1.132399604 | K44: 2.184747743 | L44: 37 | M44: =IFERROR(H44/(1+$B$11*F44/36000)+SUM($M$2:$M43),0) -> 2.58737872e+11
E45: 2035-05-24 | F45: 6903 | G45: 182 | H45: 3.918055556 | I45: 0 | J45: 1.094969557 | K45: 2.158885145 | L45: 38 | M45: =IFERROR(H45/(1+$B$11*F45/36000)+SUM($M$2:$M44),0) -> 5.174757439e+11
E46: 2035-11-22 | F46: 7085 | G46: 182 | H46: 3.918055556 | I46: 0 | J46: 1.058776713 | K46: 2.133627697 | L46: 39 | M46: =IFERROR(H46/(1+$B$11*F46/36000)+SUM($M$2:$M45),0) -> 1.034951488e+12
E47: 2036-05-22 | F47: 7267 | G47: 182 | H47: 3.918055556 | I47: 0 | J47: 1.023780178 | K47: 2.108954403 | L47: 40 | M47: =IFERROR(H47/(1+$B$11*F47/36000)+SUM($M$2:$M46),0) -> 2.069902976e+12
E48: 2036-11-20 | F48: 7449 | G48: 182 | H48: 3.918055556 | I48: 0 | J48: 0.9899404091 | K48: 2.08484523 | L48: 41 | M48: =IFERROR(H48/(1+$B$11*F48/36000)+SUM($M$2:$M47),0) -> 4.139805951e+12
E49: 2037-05-21 | F49: 7631 | G49: 182 | H49: 3.918055556 | I49: 0 | J49: 0.9572191717 | K49: 2.06128105 | L49: 42 | M49: =IFERROR(H49/(1+$B$11*F49/36000)+SUM($M$2:$M48),0) -> 8.279611902e+12
E50: 2037-11-19 | F50: 7813 | G50: 182 | H50: 3.918055556 | I50: 0 | J50: 0.9255794937 | K50: 2.03824359 | L50: 43 | M50: =IFERROR(H50/(1+$B$11*F50/36000)+SUM($M$2:$M49),0) -> 1.65592238e+13
E51: 2038-05-20 | F51: 7995 | G51: 182 | H51: 3.918055556 | I51: 0 | J51: 0.8949856255 | K51: 2.015715385 | L51: 44 | M51: =IFERROR(H51/(1+$B$11*F51/36000)+SUM($M$2:$M50),0) -> 3.311844761e+13
E52: 2038-11-18 | F52: 8177 | G52: 182 | H52: 3.918055556 | I52: 0 | J52: 0.8654029993 | K52: 1.993679733 | L52: 45 | M52: =IFERROR(H52/(1+$B$11*F52/36000)+SUM($M$2:$M51),0) -> 6.623689522e+13
E53: 2039-05-19 | F53: 8359 | G53: 182 | H53: 3.918055556 | I53: 0 | J53: 0.8367981896 | K53: 1.972120656 | L53: 46 | M53: =IFERROR(H53/(1+$B$11*F53/36000)+SUM($M$2:$M52),0) -> 1.324737904e+14
E54: 2039-11-17 | F54: 8541 | G54: 182 | H54: 3.918055556 | I54: 0 | J54: 0.809138876 | K54: 1.951022857 | L54: 47 | M54: =IFERROR(H54/(1+$B$11*F54/36000)+SUM($M$2:$M53),0) -> 2.649475809e+14
E55: 2040-05-17 | F55: 8723 | G55: 182 | H55: 3.918055556 | I55: 0 | J55: 0.7823938063 | K55: 1.930371691 | L55: 48 | M55: =IFERROR(H55/(1+$B$11*F55/36000)+SUM($M$2:$M54),0) -> 5.298951618e+14
E56: 2040-11-15 | F56: 8905 | G56: 182 | H56: 3.918055556 | I56: 0 | J56: 0.7565327613 | K56: 1.910153121 | L56: 49 | M56: =IFERROR(H56/(1+$B$11*F56/36000)+SUM($M$2:$M55),0) -> 1.059790324e+15
E57: 2041-05-16 | F57: 9087 | G57: 182 | H57: 3.918055556 | I57: 0 | J57: 0.7315265206 | K57: 1.890353698 | L57: 50 | M57: =IFERROR(H57/(1+$B$11*F57/36000)+SUM($M$2:$M56),0) -> 2.119580647e+15
E58: 2041-11-14 | F58: 9269 | G58: 182 | H58: 3.918055556 | I58: 0 | J58: 0.7073468299 | K58: 1.870960519 | L58: 51 | M58: =IFERROR(H58/(1+$B$11*F58/36000)+SUM($M$2:$M57),0) -> 4239161294052065
E59: 2042-05-15 | F59: 9451 | G59: 182 | H59: 3.918055556 | I59: 0 | J59: 0.6839663685 | K59: 1.85196121 | L59: 52 | M59: =IFERROR(H59/(1+$B$11*F59/36000)+SUM($M$2:$M58),0) -> 8478322588104130
E60: 2042-11-13 | F60: 9633 | G60: 182 | H60: 3.918055556 | I60: 100 | J60: 17.54112751 | K60: 1.833343892 | L60: 53 | M60: =IFERROR(H60/(1+$B$11*F60/36000)+SUM($M$2:$M59),0) -> 1.695664518e+16

Sheet CALCF (hidden)
A1: Fecha Valuación | B1: =+CALC!B5 -> 2016-09-30 | E1: Fecha Fin | F1: Dxv | G1: Plazo Cupon
A2: Vencimiento | B2: =+CALC!B4 -> 2042-11-13 | E2: 2013-12-19 | F2: =IF(OR(E2-$B$1<=0,E2>$B$2),"",E2-$B$1) -> 
A3: Tasa Cupón | B3: =+CALC!B6 -> 7.75 | D3: =IF(F3=MIN($F:$F),"VIG","") ->  | E3: 2014-06-19 | G3: =+E3-E2 -> 182
A4: Tasa Yield | B4: 6.819642564 | E4: 2014-12-18 | G4: 182 | H4: =IF(F4<=0,0,IF(F4=MAX($F:$F),$B$3/36000*G4*100+100,$B$3/36000*G4*100)) -> 3.918055556 | I4: =IF(F4="",0,H4/(1+$B$4*182/36000)^(F4/182)) -> 0
A5: Precio Sucio | B5: =SUM(I:I) -> 113.600001 | E5: 2015-06-18 | G5: 182 | H5: 3.918055556 | I5: 0
B6: =+B5-CALC!B15 -> -0.06012342143 | E6: 2015-12-17 | G6: 182 | H6: 3.918055556 | I6: 0
E7: 2016-06-16 | G7: 182 | H7: 3.918055556 | I7: 0
D8: VIG | E8: 2016-12-15 | F8: 76 | G8: 182 | H8: 3.918055556 | I8: 3.862988469
E9: 2017-06-15 | F9: 258 | G9: 182 | H9: 3.918055556 | I9: 3.734242678
E10: 2017-12-14 | F10: 440 | G10: 182 | H10: 3.918055556 | I10: 3.609787731
E11: 2018-06-14 | F11: 622 | G11: 182 | H11: 3.918055556 | I11: 3.489480622
E12: 2018-12-13 | F12: 804 | G12: 182 | H12: 3.918055556 | I12: 3.373183112
E13: 2019-06-13 | F13: 986 | G13: 182 | H13: 3.918055556 | I13: 3.260761568
E14: 2019-12-11 | F14: 1167 | G14: 181 | H14: 3.896527778 | I14: 3.135351535
E15: 2020-06-11 | F15: 1350 | G15: 183 | H15: 3.939583333 | I15: 3.063775918
E16: 2020-12-10 | F16: 1532 | G16: 182 | H16: 3.918055556 | I16: 2.945482338
E17: 2021-06-10 | F17: 1714 | G17: 182 | H17: 3.918055556 | I17: 2.847315218
E18: 2021-12-09 | F18: 1896 | G18: 182 | H18: 3.918055556 | I18: 2.752419815
E19: 2022-06-09 | F19: 2078 | G19: 182 | H19: 3.918055556 | I19: 2.660687088
E20: 2022-12-08 | F20: 2260 | G20: 182 | H20: 3.918055556 | I20: 2.572011633
E21: 2023-06-08 | F21: 2442 | G21: 182 | H21: 3.918055556 | I21: 2.486291555
E22: 2023-12-07 | F22: 2624 | G22: 182 | H22: 3.918055556 | I22: 2.403428359
E23: 2024-06-06 | F23: 2806 | G23: 182 | H23: 3.918055556 | I23: 2.32332683
E24: 2024-12-05 | F24: 2988 | G24: 182 | H24: 3.918055556 | I24: 2.245894926
E25: 2025-06-05 | F25: 3170 | G25: 182 | H25: 3.918055556 | I25: 2.171043676
E26: 2025-12-04 | F26: 3352 | G26: 182 | H26: 3.918055556 | I26: 2.09868707
E27: 2026-06-04 | F27: 3534 | G27: 182 | H27: 3.918055556 | I27: 2.028741967
E28: 2026-12-03 | F28: 3716 | G28: 182 | H28: 3.918055556 | I28: 1.961127997
E29: 2027-06-03 | F29: 3898 | G29: 182 | H29: 3.918055556 | I29: 1.895767467
E30: 2027-12-02 | F30: 4080 | G30: 182 | H30: 3.918055556 | I30: 1.832585274
E31: 2028-06-01 | F31: 4262 | G31: 182 | H31: 3.918055556 | I31: 1.77150882
E32: 2028-11-30 | F32: 4444 | G32: 182 | H32: 3.918055556 | I32: 1.712467923
E33: 2029-05-31 | F33: 4626 | G33: 182 | H33: 3.918055556 | I33: 1.655394743
E34: 2029-11-29 | F34: =IF(OR(E34-$B$1<=0,E34>$B$2),"",E34-$B$1) -> 4808 | G34: 182 | H34: 3.918055556 | I34: 1.600223699
D35: =IF(F35=MIN($F:$F),"VIG","") ->  | E35: 2030-05-30 | F35: 4990 | G35: =+E35-E34 -> 182 | H35: =IF(F35<=0,0,IF(F35=MAX($F:$F),$B$3/36000*G35*100+100,$B$3/36000*G35*100)) -> 3.918055556 | I35: =IF(F35="",0,H35/(1+$B$4*182/36000)^(F35/182)) -> 1.546891398
E36: 2030-11-28 | F36: 5172 | G36: 182 | H36: 3.918055556 | I36: 1.495336557
E37: 2031-05-29 | F37: 5354 | G37: 182 | H37: 3.918055556 | I37: 1.445499937
E38: 2031-11-27 | F38: 5536 | G38: 182 | H38: 3.918055556 | I38: 1.397324274
E39: 2032-05-27 | F39: 5718 | G39: 182 | H39: 3.918055556 | I39: 1.350754211
E40: 2032-11-25 | F40: 5900 | G40: 182 | H40: 3.918055556 | I40: 1.305736236
E41: 2033-05-26 | F41: 6082 | G41: 182 | H41: 3.918055556 | I41: 1.262218621
E42: 2033-11-24 | F42: 6264 | G42: 182 | H42: 3.918055556 | I42: 1.220151362
E43: 2034-05-25 | F43: 6446 | G43: 182 | H43: 3.918055556 | I43: 1.179486123
E44: 2034-11-23 | F44: 6628 | G44: 182 | H44: 3.918055556 | I44: 1.140176175
E45: 2035-05-24 | F45: 6810 | G45: 182 | H45: 3.918055556 | I45: 1.102176351
E46: 2035-11-22 | F46: 6992 | G46: 182 | H46: 3.918055556 | I46: 1.065442986
E47: 2036-05-22 | F47: 7174 | G47: 182 | H47: 3.918055556 | I47: 1.029933872
E48: 2036-11-20 | F48: 7356 | G48: 182 | H48: 3.918055556 | I48: 0.9956082062
E49: 2037-05-21 | F49: 7538 | G49: 182 | H49: 3.918055556 | I49: 0.9624265473
E50: 2037-11-19 | F50: 7720 | G50: 182 | H50: 3.918055556 | I50: 0.9303507677
E51: 2038-05-20 | F51: 7902 | G51: 182 | H51: 3.918055556 | I51: 0.8993440107
E52: 2038-11-18 | F52: 8084 | G52: 182 | H52: 3.918055556 | I52: 0.8693706477
E53: 2039-05-19 | F53: 8266 | G53: 182 | H53: 3.918055556 | I53: 0.8403962378
E54: 2039-11-17 | F54: 8448 | G54: 182 | H54: 3.918055556 | I54: 0.8123874879
E55: 2040-05-17 | F55: 8630 | G55: 182 | H55: 3.918055556 | I55: 0.7853122144
E56: 2040-11-15 | F56: 8812 | G56: 182 | H56: 3.918055556 | I56: 0.7591393064
E57: 2041-05-16 | F57: 8994 | G57: 182 | H57: 3.918055556 | I57: 0.7338386898
E58: 2041-11-14 | F58: 9176 | G58: 182 | H58: 3.918055556 | I58: 0.7093812929
E59: 2042-05-15 | F59: 9358 | G59: 182 | H59: 3.918055556 | I59: 0.6857390128
E60: 2042-11-13 | F60: 9540 | G60: 182 | H60: 103.9180556 | I60: 17.58160046

Sheet Información
A1: 1 | B1: 3.81 | E1: Contrato | F1: Vencimiento | G1: Cupón | H1: Contrato | I1: Vencimiento | J1: # Cupones
A2: 2 | B2: 3.81065117 | E2: DC18 | F2: 2018-12-13 | G2: 8.5 | H2: SP16 | I2: 2016-09-30 | J2: 0
A3: 3 | B3: 3.81130233 | E3: JN21 | F3: 2021-06-10 | G3: 6.5 | H3: DC16 | I3: 2016-12-30 | J3: 1
A4: 4 | B4: 3.8119535 | E4: DC24 | F4: 2024-12-05 | G4: 10 | H4: MR17 | I4: 2017-03-31 | J4: 1
A5: 5 | B5: 3.81260467 | E5: MY31 | F5: 2031-05-29 | G5: 7.75 | H5: JN17 | I5: 2017-06-30 | J5: 2
A6: 6 | B6: 3.81325583 | E6: NV42 | F6: 2042-11-13 | G6: 7.75
A7: 7 | B7: 3.82
A8: 8 | B8: 3.83087114
A9: 9 | B9: 3.84751329
A10: 10 | B10: 3.86608143
A11: 11 | B11: 3.88272357
A12: 12 | B12: 3.89359471
A13: 13 | B13: 3.89484386
A14: 14 | B14: 3.89
A15: 15 | B15: 3.89221986
A16: 16 | B16: 3.89443971
A17: 17 | B17: 3.89665957
A18: 18 | B18: 3.89887943
A19: 19 | B19: 3.90109929
A20: 20 | B20: 3.90331914
A21: 21 | B21: 3.9
A22: 22 | B22: 3.88777986
A23: 23 | B23: 3.87031171
A24: 24 | B24: 3.85109557
A25: 25 | B25: 3.83362743
A26: 26 | B26: 3.82140729
A27: 27 | B27: 3.81793414
A28: 28 | B28: 3.97
A29: 29 | B29: 3.97031746
A30: 30 | B30: 3.97063492
A31: 31 | B31: 3.97095238
A32: 32 | B32: 3.97126984
A33: 33 | B33: 3.9715873
A34: 34 | B34: 3.97190476
A35: 35 | B35: 3.97222222
A36: 36 | B36: 3.97253968
A37: 37 | B37: 3.97285714
A38: 38 | B38: 3.9731746
A39: 39 | B39: 3.97349206
A40: 40 | B40: 3.97380952
A41: 41 | B41: 3.97412698
A42: 42 | B42: 3.97444444
A43: 43 | B43: 3.9747619
A44: 44 | B44: 3.97507937
A45: 45 | B45: 3.97539683
A46: 46 | B46: 3.97571429
A47: 47 | B47: 3.97603175
A48: 48 | B48: 3.97634921
A49: 49 | B49: 3.98386767
A50: 50 | B50: 4.00275713
A51: 51 | B51: 4.02846759
A52: 52 | B52: 4.05645305
A53: 53 | B53: 4.08216351
A54: 54 | B54: 4.10105297
A55: 55 | B55: 4.10857143
A56: 56 | B56: 4.10888889
A57: 57 | B57: 4.10920635
A58: 58 | B58: 4.10952381
A59: 59 | B59: 4.10984127
A60: 60 | B60: 4.11015873
A61: 61 | B61: 4.11047619
A62: 62 | B62: 4.11079365
A63: 63 | B63: 4.10889511
A64: 64 | B64: 4.10349857
A65: 65 | B65: 4.09600303
A66: 66 | B66: 4.08780649
A67: 67 | B67: 4.08031095
A68: 68 | B68: 4.07491441
A69: 69 | B69: 4.07301587
A70: 70 | B70: 4.08219633
A71: 71 | B71: 4.10537079
A72: 72 | B72: 4.13694225
A73: 73 | B73: 4.17131171
A74: 74 | B74: 4.20288317
A75: 75 | B75: 4.22605763
A76: 76 | B76: 4.2352381
A77: 77 | B77: 4.23555556
A78: 78 | B78: 4.23587302
A79: 79 | B79: 4.23619048
A80: 80 | B80: 4.23650794
A81: 81 | B81: 4.2368254
A82: 82 | B82: 4.23714286
A83: 83 | B83: 4.23746032
A84: 84 | B84: 4.23556178
A85: 85 | B85: 4.23016524
A86: 86 | B86: 4.2226697
A87: 87 | B87: 4.21447316
A88: 88 | B88: 4.20697762
A89: 89 | B89: 4.20158108
A90: 90 | B90: 4.19968254
A91: 91 | B91: 4.25
A92: 92 | B92: 4.24977528
A93: 93 | B93: 4.24955056
A94: 94 | B94: 4.24932584
A95: 95 | B95: 4.24910112
A96: 96 | B96: 4.2488764
A97: 97 | B97: 4.24865169
A98: 98 | B98: 4.24882097
A99: 99 | B99: 4.24971825
A100: 100 | B100: 4.25125753
A101: 101 | B101: 4.25335081
A102: 102 | B102: 4.25591009
A103: 103 | B103: 4.25884837
A104: 104 | B104: 4.26207865
A105: 105 | B105: 4.26551293
A106: 106 | B106: 4.26906321
A107: 107 | B107: 4.27264349
A108: 108 | B108: 4.27616478
A109: 109 | B109: 4.27954106
A110: 110 | B110: 4.28268334
A111: 111 | B111: 4.28550562
A112: 112 | B112: 4.2883279
A113: 113 | B113: 4.29147018
A114: 114 | B114: 4.29484646
A115: 115 | B115: 4.29836774
A116: 116 | B116: 4.30194802
A117: 117 | B117: 4.3054983
A118: 118 | B118: 4.30893258
A119: 119 | B119: 4.31216287
A120: 120 | B120: 4.31510115
A121: 121 | B121: 4.31766043
A122: 122 | B122: 4.31975371
A123: 123 | B123: 4.32129299
A124: 124 | B124: 4.32219027
A125: 125 | B125: 4.32235955
A126: 126 | B126: 4.32213483
A127: 127 | B127: 4.32191011
A128: 128 | B128: 4.32168539
A129: 129 | B129: 4.32146067
A130: 130 | B130: 4.32123596
A131: 131 | B131: 4.32101124
A132: 132 | B132: 4.32078652
A133: 133 | B133: 4.3205618
A134: 134 | B134: 4.32033708
A135: 135 | B135: 4.32011236
A136: 136 | B136: 4.31988764
A137: 137 | B137: 4.31966292
A138: 138 | B138: 4.3194382
A139: 139 | B139: 4.31921348
A140: 140 | B140: 4.31889776
A141: 141 | B141: 4.31844304
A142: 142 | B142: 4.31791633
A143: 143 | B143: 4.31738161
A144: 144 | B144: 4.31690589
A145: 145 | B145: 4.31655317
A146: 146 | B146: 4.31639045
A147: 147 | B147: 4.31648273
A148: 148 | B148: 4.31689601
A149: 149 | B149: 4.31769529
A150: 150 | B150: 4.31894657
A151: 151 | B151: 4.32071485
A152: 152 | B152: 4.32306713
A153: 153 | B153: 4.32606742
A154: 154 | B154: 4.3299427
A155: 155 | B155: 4.33474298
A156: 156 | B156: 4.34027326
A157: 157 | B157: 4.34633454
A158: 158 | B158: 4.35273182
A159: 159 | B159: 4.3592671
A160: 160 | B160: 4.36574438
A161: 161 | B161: 4.37196666
A162: 162 | B162: 4.37773694
A163: 163 | B163: 4.38285822
A164: 164 | B164: 4.38713451
A165: 165 | B165: 4.39036779
A166: 166 | B166: 4.39236207
A167: 167 | B167: 4.39292135
A168: 168 | B168: 4.39269663
A169: 169 | B169: 4.39247191
A170: 170 | B170: 4.39224719
A171: 171 | B171: 4.39202247
A172: 172 | B172: 4.39179775
A173: 173 | B173: 4.39157303
A174: 174 | B174: 4.39134831
A175: 175 | B175: 4.3911236
A176: 176 | B176: 4.39089888
A177: 177 | B177: 4.39067416
A178: 178 | B178: 4.39044944
A179: 179 | B179: 4.39022472
A180: 180 | B180: 4.39
A181: 181 | B181: 4.38983333
A182: 182 | B182: 4.38966667
A183: 183 | B183: 4.389553
A184: 184 | B184: 4.38954033
A185: 185 | B185: 4.38962467
A186: 186 | B186: 4.389801
A187: 187 | B187: 4.39006333
A188: 188 | B188: 4.39040567
A189: 189 | B189: 4.390825
A190: 190 | B190: 4.39131433
A191: 191 | B191: 4.39186867
A192: 192 | B192: 4.392483
A193: 193 | B193: 4.39315333
A194: 194 | B194: 4.39387167
A195: 195 | B195: 4.394636
A196: 196 | B196: 4.39543833
A197: 197 | B197: 4.39627467
A198: 198 | B198: 4.39714
A199: 199 | B199: 4.39802933
A200: 200 | B200: 4.39893667
... 1800 more rows

Sheet FUTUROS ESPECIFICOS
A1: Contrato | B1: YCash Bid | C1: YFut Bid | D1: Bid | E1: Ask | F1: Y F Ask | G1: YCash Ask | H1: Last | I1: Tasa Fut | J1: Tasa Cash | L1: BID | M1: ASK | N1: LAST | S1: Plazos | T1: DXV | U1: Fondeo
A2: ="DC18 "&Información!$H$2 -> DC18 SP16 | L2: =_xll.rtdValue(L$1,$A2,"EMD","MXN") ->  | M2: =_xll.rtdValue(M$1,$A2,"EMD","MXN") ->  | N2: =_xll.rtdValue(N$1,$A2,"EMD","MXN") ->  | P2: Fecha Valuación | S2: =+Información!H2 -> SP16 | T2: =VLOOKUP(S2,CTOS_FUT,2,0)-'FUTUROS ESPECIFICOS'!$P$4 -> 93 | U2: =VLOOKUP(T2,Información!$A:$B,2,0) -> 4.24955056
U3: 3.22
A4: ="DC18 "&Información!$H$3 -> DC18 DC16 | L4: =_xll.rtdValue(L$1,$A4,"EMD","MXN") ->  | M4: =_xll.rtdValue(M$1,$A4,"EMD","MXN") ->  | N4: =_xll.rtdValue(N$1,$A4,"EMD","MXN") ->  | P4: =WORKDAY(TODAY(),2,calendario!$A$1:$A$339) -> 2016-06-29 | S4: =+Información!H3 -> DC16 | T4: =VLOOKUP(S4,CTOS_FUT,2,0)-'FUTUROS ESPECIFICOS'!$P$4 -> 184 | U4: =VLOOKUP(T4,Información!$A:$B,2,0) -> 4.38954033
U5: 3.34588072
A6: ="DC18 "&Información!$H$4 -> DC18 MR17 | L6: =_xll.rtdValue(L$1,$A6,"EMD","MXN") ->  | M6: =_xll.rtdValue(M$1,$A6,"EMD","MXN") ->  | N6: =_xll.rtdValue(N$1,$A6,"EMD","MXN") ->  | S6: =+Información!H4 -> MR17 | T6: =VLOOKUP(S6,CTOS_FUT,2,0)-'FUTUROS ESPECIFICOS'!$P$4 -> 275 | U6: =VLOOKUP(T6,Información!$A:$B,2,0) -> 4.41921067
U7: 3.59151833
A8: ="DC18 "&Información!$H$5 -> DC18 JN17 | L8: =_xll.rtdValue(L$1,$A8,"EMD","MXN") ->  | M8: =_xll.rtdValue(M$1,$A8,"EMD","MXN") ->  | N8: =_xll.rtdValue(N$1,$A8,"EMD","MXN") ->  | S8: =+Información!H5 -> JN17 | T8: =VLOOKUP(S8,CTOS_FUT,2,0)-'FUTUROS ESPECIFICOS'!$P$4 -> 366 | U8: =VLOOKUP(T8,Información!$A:$B,2,0) -> 4.499972
U9: 3.60036767
A12: ="JN21 "&Información!$H$2 -> JN21 SP16 | L12: =_xll.rtdValue(L$1,$A12,"EMD","MXN") ->  | M12: =_xll.rtdValue(M$1,$A12,"EMD","MXN") ->  | N12: =_xll.rtdValue(N$1,$A12,"EMD","MXN") -> 
A14: ="JN21 "&Información!$H$3 -> JN21 DC16 | L14: =_xll.rtdValue(L$1,$A14,"EMD","MXN") ->  | M14: =_xll.rtdValue(M$1,$A14,"EMD","MXN") ->  | N14: =_xll.rtdValue(N$1,$A14,"EMD","MXN") -> 
A16: ="JN21 "&Información!$H$4 -> JN21 MR17 | L16: =_xll.rtdValue(L$1,$A16,"EMD","MXN") ->  | M16: =_xll.rtdValue(M$1,$A16,"EMD","MXN") ->  | N16: =_xll.rtdValue(N$1,$A16,"EMD","MXN") -> 
A18: ="JN21 "&Información!$H$5 -> JN21 JN17 | L18: =_xll.rtdValue(L$1,$A18,"EMD","MXN") ->  | M18: =_xll.rtdValue(M$1,$A18,"EMD","MXN") ->  | N18: =_xll.rtdValue(N$1,$A18,"EMD","MXN") -> 
A22: ="DC24 "&Información!$H$2 -> DC24 SP16 | L22: =_xll.rtdValue(L$1,$A22,"EMD","MXN") ->  | M22: =_xll.rtdValue(M$1,$A22,"EMD","MXN") ->  | N22: =_xll.rtdValue(N$1,$A22,"EMD","MXN") -> 
A24: ="DC24 "&Información!$H$3 -> DC24 DC16 | L24: =_xll.rtdValue(L$1,$A24,"EMD","MXN") ->  | M24: =_xll.rtdValue(M$1,$A24,"EMD","MXN") ->  | N24: =_xll.rtdValue(N$1,$A24,"EMD","MXN") -> 
A26: ="DC24 "&Información!$H$4 -> DC24 MR17 | L26: =_xll.rtdValue(L$1,$A26,"EMD","MXN") ->  | M26: =_xll.rtdValue(M$1,$A26,"EMD","MXN") ->  | N26: =_xll.rtdValue(N$1,$A26,"EMD","MXN") -> 
A28: ="DC24 "&Información!$H$5 -> DC24 JN17 | L28: =_xll.rtdValue(L$1,$A28,"EMD","MXN") ->  | M28: =_xll.rtdValue(M$1,$A28,"EMD","MXN") ->  | N28: =_xll.rtdValue(N$1,$A28,"EMD","MXN") -> 
A32: ="MY31 "&Información!$H$2 -> MY31 SP16 | L32: =_xll.rtdValue(L$1,$A32,"EMD","MXN") ->  | M32: =_xll.rtdValue(M$1,$A32,"EMD","MXN") ->  | N32: =_xll.rtdValue(N$1,$A32,"EMD","MXN") -> 
A34: ="MY31 "&Información!$H$3 -> MY31 DC16 | L34: =_xll.rtdValue(L$1,$A34,"EMD","MXN") ->  | M34: =_xll.rtdValue(M$1,$A34,"EMD","MXN") ->  | N34: =_xll.rtdValue(N$1,$A34,"EMD","MXN") -> 
A36: ="MY31 "&Información!$H$4 -> MY31 MR17 | L36: =_xll.rtdValue(L$1,$A36,"EMD","MXN") ->  | M36: =_xll.rtdValue(M$1,$A36,"EMD","MXN") ->  | N36: =_xll.rtdValue(N$1,$A36,"EMD","MXN") -> 
A38: ="MY31 "&Información!$H$5 -> MY31 JN17 | L38: =_xll.rtdValue(L$1,$A38,"EMD","MXN") ->  | M38: =_xll.rtdValue(M$1,$A38,"EMD","MXN") ->  | N38: =_xll.rtdValue(N$1,$A38,"EMD","MXN") -> 
A42: ="NV42 "&Información!$H$2 -> NV42 SP16 | L42: =_xll.rtdValue(L$1,$A42,"EMD","MXN") ->  | M42: =_xll.rtdValue(M$1,$A42,"EMD","MXN") ->  | N42: =_xll.rtdValue(N$1,$A42,"EMD","MXN") -> 
A44: ="NV42 "&Información!$H$3 -> NV42 DC16 | L44: =_xll.rtdValue(L$1,$A44,"EMD","MXN") ->  | M44: =_xll.rtdValue(M$1,$A44,"EMD","MXN") ->  | N44: =_xll.rtdValue(N$1,$A44,"EMD","MXN") -> 
A46: ="NV42 "&Información!$H$4 -> NV42 MR17 | L46: =_xll.rtdValue(L$1,$A46,"EMD","MXN") ->  | M46: =_xll.rtdValue(M$1,$A46,"EMD","MXN") ->  | N46: =_xll.rtdValue(N$1,$A46,"EMD","MXN") -> 
A48: ="NV42 "&Información!$H$5 -> NV42 JN17 | L48: =_xll.rtdValue(L$1,$A48,"EMD","MXN") ->  | M48: =_xll.rtdValue(M$1,$A48,"EMD","MXN") ->  | N48: =_xll.rtdValue(N$1,$A48,"EMD","MXN") -> 

Sheet calendario (hidden)
A1: 2015-01-01
A2: 2015-02-02
A3: 2015-03-16
A4: 2015-04-02
A5: 2015-04-03
A6: 2015-05-01
A7: 2015-09-16
A8: 2015-11-02
A9: 2015-11-16
A10: 2015-12-25
A11: 2016-01-01
A12: 2016-02-01
A13: 2016-03-21
A14: 2016-03-24
A15: 2016-03-25
A16: 2016-09-16
A17: 2016-11-02
A18: 2016-11-21
A19: 2016-12-12
A20: 2017-02-06
A21: 2017-03-20
A22: 2017-04-13
A23: 2017-04-14
A24: 2017-05-01
A25: 2017-11-02
A26: 2017-11-20
A27: 2017-12-12
A28: 2017-12-25
A29: 2018-01-01
A30: 2018-02-05
A31: 2018-03-19
A32: 2018-03-29
A33: 2018-03-30
A34: 2018-05-01
A35: 2018-11-02
A36: 2018-11-19
A37: 2018-12-12
A38: 2018-12-25
A39: 2019-01-01
A40: 2019-02-04
A41: 2019-03-18
A42: 2019-04-18
A43: 2019-04-19
A44: 2019-05-01
A45: 2019-09-16
A46: 2019-11-18
A47: 2019-12-12
A48: 2019-12-25
A49: 2020-01-01
A50: 2020-02-03
A51: 2020-03-16
A52: 2020-04-09
A53: 2020-04-10
A54: 2020-05-01
A55: 2020-09-16
A56: 2020-11-02
A57: 2020-11-16
A58: 2020-12-25
A59: 2021-01-01
A60: 2021-02-01
A61: 2021-03-15
A62: 2021-04-01
A63: 2021-04-02
A64: 2021-09-16
A65: 2021-11-02
A66: 2021-11-15
A67: 2022-02-07
A68: 2022-03-21
A69: 2022-04-14
A70: 2022-04-15
A71: 2022-09-16
A72: 2022-11-02
A73: 2022-11-21
A74: 2022-12-12
A75: 2023-02-06
A76: 2023-03-20
A77: 2023-04-06
A78: 2023-04-07
A79: 2023-05-01
A80: 2023-11-02
A81: 2023-11-20
A82: 2023-12-12
A83: 2023-12-25
A84: 2024-01-01
A85: 2024-02-05
A86: 2024-03-18
A87: 2024-03-28
A88: 2024-03-29
A89: 2024-05-01
A90: 2024-09-16
A91: 2024-11-18
A92: 2024-12-12
A93: 2024-12-25
A94: 2025-01-01
A95: 2025-02-03
A96: 2025-03-17
A97: 2025-04-17
A98: 2025-04-18
A99: 2025-05-01
A100: 2025-09-16
A101: 2025-11-17
A102: 2025-12-12
A103: 2025-12-25
A104: 2026-01-01
A105: 2026-02-02
A106: 2026-03-16
A107: 2026-04-02
A108: 2026-04-03
A109: 2026-05-01
A110: 2026-09-16
A111: 2026-11-02
A112: 2026-11-16
A113: 2026-12-25
A114: 2027-01-01
A115: 2027-02-01
A116: 2027-03-15
A117: 2027-03-25
A118: 2027-03-26
A119: 2027-09-16
A120: 2027-11-02
A121: 2027-11-15
A122: 2028-02-07
A123: 2028-03-20
A124: 2028-04-13
A125: 2028-04-14
A126: 2028-05-01
A127: 2028-11-02
A128: 2028-11-20
A129: 2028-12-12
A130: 2028-12-25
A131: 2029-01-01
A132: 2029-02-05
A133: 2029-03-19
A134: 2029-03-29
A135: 2029-03-30
A136: 2029-05-01
A137: 2029-11-02
A138: 2029-11-19
A139: 2029-12-12
A140: 2029-12-25
A141: 2030-01-01
A142: 2030-02-04
A143: 2030-03-18
A144: 2030-04-18
A145: 2030-04-19
A146: 2030-05-01
A147: 2030-09-16
A148: 2030-11-18
A149: 2030-12-12
A150: 2030-12-25
A151: 2031-01-01
A152: 2031-02-03
A153: 2031-03-17
A154: 2031-04-10
A155: 2031-04-11
A156: 2031-05-01
A157: 2031-09-16
A158: 2031-11-17
A159: 2031-12-12
A160: 2031-12-25
A161: 2032-01-01
A162: 2032-02-02
A163: 2032-03-15
A164: 2032-03-25
A165: 2032-03-26
A166: 2032-09-16
A167: 2032-11-02
A168: 2032-11-15
A169: 2033-02-07
A170: 2033-03-21
A171: 2033-04-14
A172: 2033-04-15
A173: 2033-09-16
A174: 2033-11-02
A175: 2033-11-21
A176: 2033-12-12
A177: 2034-02-06
A178: 2034-03-20
A179: 2034-04-06
A180: 2034-04-07
A181: 2034-05-01
A182: 2034-11-02
A183: 2034-11-20
A184: 2034-12-12
A185: 2034-12-25
A186: 2035-01-01
A187: 2035-02-05
A188: 2035-03-19
A189: 2035-03-22
A190: 2035-03-23
A191: 2035-05-01
A192: 2035-11-02
A193: 2035-11-19
A194: 2035-12-12
A195: 2035-12-25
A196: 2036-01-01
A197: 2036-02-04
A198: 2036-03-17
A199: 2036-04-10
A200: 2036-04-11
... 139 more rows
